Workbook

Sheet DFT
A1: SU_Vario_3.0 | P1: Author: Bo Svensmark, svensmark@plen.ku.dk, Analytical Chemistry, ECP, PLEN, University of Copenhagen, 2022
M19: Discrete Fourier Transform (DFT) analysis of data
A21: z | B21: f(x) | C21: F(z) Real | D21: F(z) Imag | E21: F(z) | F21: Filter | G21: F(z) ReF | H21: F(z)ImF | I21: F(z) filt | J21: f(x) filt | M21: This sheet can be used to attenuate or amplify cyclic variations
A22: 0 | B22: 0.02830405036 | C22: 2.311220427 | E22: =IF(B22="","",SQRT(C22^2+D22^2)) -> 2.311220427 | G22: =IF(B22="","",IF($F22="",C22,$F22*C22)) -> 2.311220427 | H22: =IF(B22="","",IF($F22="",D22,$F22*D22)) -> 0 | I22: =IF(G22="","",SQRT(G22^2+H22^2)) -> 2.311220427 | J22: 0.02710427524 | K22: N | M22: The 'frequency scale (z)' is number of increments i.e. cycles per variogram length*)
A23: 0.5 | B23: 0.02741282545 | C23: -0.1617823677 | D23: 0.01195817995 | E23: =IF(B23="","",SQRT(C23^2+D23^2)) -> 0.1622237115 | G23: =IF(B23="","",IF($F23="",C23,$F23*C23)) -> -0.1617823677 | H23: =IF(B23="","",IF($F23="",D23,$F23*D23)) -> 0.01195817995 | I23: =IF(G23="","",SQRT(G23^2+H23^2)) -> 0.1622237115 | J23: 0.02580462748 | K23: 96 | M23: z = 0 is the mean
A24: 1 | B24: 0.0262502712 | C24: 0.062526944 | D24: 0.01621359708 | E24: =IF(B24="","",SQRT(C24^2+D24^2)) -> 0.06459488723 | G24: =IF(B24="","",IF($F24="",C24,$F24*C24)) -> 0.062526944 | H24: =IF(B24="","",IF($F24="",D24,$F24*D24)) -> 0.01621359708 | I24: 0.06459488723 | J24: 0.02466456573
A25: 1.5 | B25: 0.02481218744 | C25: 0.03749905788 | D25: -0.006225265625 | E25: 0.03801227794 | G25: 0.03749905788 | H25: -0.006225265625 | I25: 0.03801227794 | J25: 0.02367386297 | M25: Only input in the white cells, column B and F
A26: 2 | B26: 0.02320858456 | C26: 0.02382495055 | D26: -0.0101218693 | E26: 0.02588591329 | G26: 0.02382495055 | H26: -0.0101218693 | I26: 0.02588591329 | J26: 0.02282265421
A27: 2.5 | B27: 0.02163155296 | C27: 0.01663325027 | D27: -0.01022943535 | E27: 0.01952706742 | G27: 0.01663325027 | H27: -0.01022943535 | I27: 0.01952706742 | J27: 0.02210142645 | M27: 1) Enter multipliers for the frequencies that should be changed in column F
A28: 3 | B28: 0.02030123858 | C28: 0.0124980031 | D28: -0.009494745985 | E28: 0.01569554977 | G28: 0.0124980031 | H28: -0.009494745985 | I28: 0.01569554977 | J28: 0.02150101369 | N28: Leave all other frequencies = blank
A29: 3.5 | B29: 0.01940439697 | C29: 0.009926915202 | D29: -0.00862536353 | E29: 0.01315068597 | G29: 0.009926915202 | H29: -0.00862536353 | I29: 0.01315068597 | J29: 0.02101259493 | N29: Multipliers > 1 will amplify this frequency
A30: 4 | B30: 0.01904197971 | C30: 0.06581623498 | D30: -0.06244522822 | E30: 0.09072586905 | F30: 0.125 | G30: 0.008227029373 | H30: -0.007805653527 | I30: 0.01134073363 | J30: 0.02062768518 | N30: (Only for positive frequencies, i.e. up to data length/2)
A31: 4.5 | B31: 0.01919980795 | C31: 0.007047538677 | D31: -0.007077689205 | E31: 0.009988067174 | G31: 0.007047538677 | H31: -0.007077689205 | I31: 0.009988067174 | J31: 0.02033813242 | N31: (the macro will mirror the multipliers for the negative frequencies)
A32: 5 | B32: 0.01975017731 | C32: 0.006196941246 | D32: -0.006442267946 | E32: 0.008938953915 | G32: 0.006196941246 | H32: -0.006442267946 | I32: 0.008938953915 | J32: 0.02013610766
A33: 5.5 | B33: 0.0204839804 | C33: 0.005563994206 | D33: -0.005888950679 | E33: 0.008101714116 | G33: 0.005563994206 | H33: -0.005888950679 | I33: 0.008101714116 | J33: 0.0200141069 | M33: 2) Press Inverse DFT to calculate the filtered data
A34: 6 | B34: 0.02116471226 | C34: 0.005080620136 | D34: -0.00540541998 | E34: 0.007418306149 | G34: 0.005080620136 | H34: -0.00540541998 | I34: 0.007418306149 | J34: 0.01996493714
A35: 6.5 | B35: 0.02158991435 | C35: 0.004703361701 | D35: -0.004980366576 | E35: 0.006850230837 | G35: 0.004703361701 | H35: -0.004980366576 | I35: 0.006850230837 | J35: 0.01998171639 | M35: 3) Press New sheet to open a new sheet with the filtered data
A36: 7 | B36: 0.0216435711 | C36: 0.004403429338 | D36: -0.00460418747 | E36: 0.006370928676 | G36: 0.004403429338 | H36: -0.00460418747 | I36: 0.006370928676 | J36: 0.02005786563
A37: 7.5 | B37: 0.02132542934 | C37: 0.004161169931 | D37: -0.004268944942 | E37: 0.005961478517 | G37: 0.004161169931 | H37: -0.004268944942 | I37: 0.005961478517 | J37: 0.02018710487 | M37: If you change data or input data manually:
A38: 8 | B38: 0.02074937646 | C38: 0.003962782391 | D38: -0.003968155058 | E38: 0.005608020938 | G38: 0.003962782391 | H38: -0.003968155058 | I38: 0.005608020938 | J38: 0.02036344611
A39: 8.5 | B39: 0.02011131486 | C39: 0.003798371688 | D39: -0.003696528553 | E39: 0.005300184037 | G39: 0.003798371688 | H39: -0.003696528553 | I39: 0.005300184037 | J39: 0.02058118835 | M39: 1) Input data in cell B22 and down
A40: 9 | B40: 0.01963513648 | C40: 0.003660660826 | D40: -0.003449739041 | E40: 0.005030023572 | G40: 0.003660660826 | H40: -0.003449739041 | I40: 0.005030023572 | J40: 0.0208349116
A41: 9.5 | B41: 0.01951127587 | C41: 0.00354426014 | D41: -0.003224215635 | E41: 0.004791382515 | G41: 0.00354426014 | H41: -0.003224215635 | I41: 0.004791382515 | J41: 0.02111947384 | M41: 2) Press DFT
A42: 10 | B42: 0.01984429561 | C42: 0.003445044585 | D42: -0.003017025604 | E42: 0.004579385951 | G42: 0.003445044585 | H42: -0.003017025604 | I42: 0.004579385951 | J42: 0.02143000108
A43: 10.5 | B43: 0.02062355985 | C43: 0.003359863571 | D43: -0.002825701631 | E43: 0.004390133588 | G43: 0.003359863571 | H43: -0.002825701631 | I43: 0.004390133588 | J43: 0.02176188432
A44: 11 | B44: 0.02172484521 | C44: 0.003286254316 | D44: -0.002648193101 | E44: 0.004220473212 | G44: 0.003286254316 | H44: -0.002648193101 | I44: 0.004220473212 | J44: 0.02211077556 | M44: *) The steps in z is 0.5 because the variogram is only half as long as the input data:
A45: 11.5 | B45: 0.0229424503 | C45: 0.003222275573 | D45: -0.002482772323 | E45: 0.004067827219 | G45: 0.003222275573 | H45: -0.002482772323 | I45: 0.004067827219 | J45: 0.0224725768 | M45: 1 cycle per input length is only 0.5 cycle per variogram length
A46: 12 | B46: 0.02404321816 | C46: 0.003166385391 | D46: -0.002327958391 | E46: 0.003930061922 | G46: 0.003166385391 | H46: -0.002327958391 | I46: 0.003930061922 | J46: 0.02284344305
A47: 12.5 | B47: 0.02482796425 | C47: 0.003117328077 | D47: -0.002182499427 | E47: 0.003805395918 | G47: 0.003117328077 | H47: -0.002182499427 | I47: 0.003805395918 | J47: 0.02321976629
A48: 13 | B48: 0.025183884 | C48: 0.003074110254 | D48: -0.002045314321 | E48: 0.003692352167 | G48: 0.003074110254 | H48: -0.002045314321 | I48: 0.003692352167 | J48: 0.02359817853 | L48: Ni | M48: DFT | N48: DFT(filtered)
A49: 13.5 | B49: 0.02511386824 | C49: 0.003035906165 | D49: -0.001915463705 | E49: 0.003589669545 | G49: 0.003035906165 | H49: -0.001915463705 | I49: 0.003589669545 | J49: 0.02397554377 | L49: 1 | M49: =IF(L49=0,NA(),VLOOKUP(L49,A22:E277,5)) -> 0.06459488723 | N49: =IF(L49=0,NA(),VLOOKUP(L49,A22:J277,9)) -> 0.06459488723
A50: 14 | B50: 0.02473488037 | C50: 0.003002024358 | D50: -0.001792145991 | E50: 0.003496274803 | G50: 0.003002024358 | H50: -0.001792145991 | I50: 0.003496274803 | J50: 0.02434895001 | L50: 2 | M50: =IF(L50=0,NA(),VLOOKUP(L50,A23:E278,5)) -> 0.02588591329 | N50: =IF(L50=0,NA(),VLOOKUP(L50,A23:J278,9)) -> 0.02588591329
A51: 14.5 | B51: 0.02424583076 | C51: 0.002971909679 | D51: -0.001674643382 | E51: 0.003411257481 | G51: 0.002971909679 | H51: -0.001674643382 | I51: 0.003411257481 | J51: 0.02471570426 | L51: 3 | M51: 0.01569554977 | N51: 0.01569554977
A52: 15 | B52: 0.02387355638 | C52: 0.002945087737 | D52: -0.001562336725 | E52: 0.003333832302 | G52: 0.002945087737 | H52: -0.001562336725 | I52: 0.003333832302 | J52: 0.0250733315 | L52: 4 | M52: 0.09072586905 | N52: 0.01134073363
A53: 15.5 | B53: 0.02381136477 | C53: 0.002921170219 | D53: -0.001454675822 | E53: 0.003263329158 | G53: 0.002921170219 | H53: -0.001454675822 | I53: 0.003263329158 | J53: 0.02541956274 | L53: 6 | M53: 0.007418306149 | N53: 0.007418306149
A54: 16 | B54: 0.02416662851 | C54: 0.002899814391 | D54: -0.001351174793 | E54: 0.003199155642 | G54: 0.002899814391 | H54: -0.001351174793 | I54: 0.003199155642 | J54: 0.02575233398 | L54: 8 | M54: 0.005608020938 | N54: 0.005608020938
A55: 16.5 | B55: 0.02493145375 | C55: 0.002880746918 | D55: -0.001251386148 | E55: 0.003140807237 | G55: 0.002880746918 | H55: -0.001251386148 | I55: 0.003140807237 | J55: 0.02606977822 | L55: 12 | M55: 0.003930061922 | N55: 0.003930061922
A56: 17 | B56: 0.02598429111 | C56: 0.002863730957 | D56: -0.001154932404 | E56: 0.003087851009 | G56: 0.002863730957 | H56: -0.001154932404 | I56: 0.003087851009 | J56: 0.02637022146 | L56: 16 | M56: 0.003199155642 | N56: 0.003199155642
A57: 17.5 | B57: 0.0271220482 | C57: 0.002848558863 | D57: -0.001061452404 | E57: 0.003039896183 | G57: 0.002848558863 | H57: -0.001061452404 | I57: 0.003039896183 | J57: 0.02665217471 | L57: 0 | M57: =IF(L57=0,NA(),VLOOKUP(L57,A30:E285,5)) ->  | N57: =IF(L57=0,NA(),VLOOKUP(L57,A30:J285,9)) -> 
A58: 18 | B58: 0.02811410707 | C58: 0.002835052646 | D58: -0.0009706251976 | E58: 0.002996604208 | G58: 0.002835052646 | H58: -0.0009706251976 | I58: 0.002996604208 | J58: 0.02691433195 | L58: 0
A59: 18.5 | B59: 0.02876376016 | C59: 0.002823067973 | D59: -0.0008821645976 | E59: 0.002957689497 | G59: 0.002823067973 | H59: -0.0008821645976 | I59: 0.002957689497 | J59: 0.02715556219 | L59: 0
A60: 19 | B60: 0.0289606099 | C60: 0.002812488285 | D60: -0.0007957950379 | E60: 0.002922906104 | G60: 0.002812488285 | H60: -0.0007957950379 | I60: 0.002922906104 | J60: 0.02737490443 | L60: 0
A61: 19.5 | B61: 0.02870988615 | C61: 0.002803191404 | D61: -0.0007112768802 | E61: 0.002892022968 | G61: 0.002803191404 | H61: -0.0007112768802 | I61: 0.002892022968 | J61: 0.02757156167 | L61: 0
A62: 20 | B62: 0.02813082627 | C62: 0.002795089409 | D62: -0.0006283800366 | E62: 0.002864853622 | G62: 0.002795089409 | H62: -0.0006283800366 | I62: 0.002864853622 | J62: 0.02774489592 | L62: 0
A63: 20.5 | B63: 0.02742454766 | C63: 0.002788107433 | D63: -0.0005468872526 | E63: 0.002841237182 | G63: 0.002788107433 | H63: -0.0005468872526 | I63: 0.002841237182 | J63: 0.02789442116 | L63: 0
A64: 21 | B64: 0.02682002728 | C64: 0.002782177906 | D64: -0.0004665981054 | E64: 0.002821033089 | G64: 0.002782177906 | H64: -0.0004665981054 | I64: 0.002821033089 | J64: 0.0280198024 | L64: 0
A65: 21.5 | B65: 0.02651264568 | C65: 0.002777248991 | D65: -0.0003873208733 | E65: 0.002804127211 | G65: 0.002777248991 | H65: -0.0003873208733 | I65: 0.002804127211 | J65: 0.02812084364
A66: 22 | B66: 0.02661178041 | C66: 0.002773272072 | D66: -0.0003088797846 | E66: 0.002790420166 | G66: 0.002773272072 | H66: -0.0003088797846 | I66: 0.002790420166 | J66: 0.02819748588
A67: 22.5 | B67: 0.02711147765 | C67: 0.002770216581 | D67: -0.0002310910389 | E67: 0.00277983866 | G67: 0.002770216581 | H67: -0.0002310910389 | I67: 0.00277983866 | J67: 0.02824980213
A68: 23 | B68: 0.02789205901 | C68: 0.002768044735 | D68: -0.0001537917256 | E68: 0.002772313754 | G68: 0.002768044735 | H68: -0.0001537917256 | I68: 0.002772313754 | J68: 0.02827798937
A69: 23.5 | B69: 0.0287522391 | C69: 0.002766753935 | D69: -7.681340986e-05 | E69: 0.002767820015 | G69: 0.002766753935 | H69: -7.681340986e-05 | I69: 0.002767820015 | J69: 0.02828236561
A70: 24 | B70: 0.02946313797 | C70: 0.002766325391 | D70: -8.249786416e-16 | E70: 0.002766325391 | G70: 0.002766325391 | H70: -8.249786416e-16 | I70: 0.002766325391 | J70: 0.02826336285
A71: 24.5 | B71: 0.02982972006 | C71: 0.002766753935 | D71: 7.681340986e-05 | E71: 0.002767820015 | G71: 0.002766753935 | H71: 7.681340986e-05 | I71: 0.002767820015 | J71: 0.02822152209
A72: 25 | B72: 0.0297431908 | C72: 0.002768044735 | D72: 0.0001537917256 | E72: 0.002772313754 | G72: 0.002768044735 | H72: 0.0001537917256 | I72: 0.002772313754 | J72: 0.02815748533
A73: 25.5 | B73: 0.02921031905 | C73: 0.002770216581 | D73: 0.0002310910389 | E73: 0.00277983866 | G73: 0.002770216581 | H73: 0.0002310910389 | I73: 0.00277983866 | J73: 0.02807199458
A74: 26 | B74: 0.02835181217 | C74: 0.002773272072 | D74: 0.0003088797846 | E74: 0.002790420166 | G74: 0.002773272072 | H74: 0.0003088797846 | I74: 0.002790420166 | J74: 0.02796588182
A75: 26.5 | B75: 0.02737019357 | C75: 0.002777248991 | D75: 0.0003873208733 | E75: 0.002804127211 | G75: 0.002777248991 | H75: 0.0003873208733 | I75: 0.002804127211 | J75: 0.02784006706
A76: 27 | B76: 0.02649577419 | C76: 0.002782177906 | D76: 0.0004665981054 | E76: 0.002821033089 | G76: 0.002782177906 | H76: 0.0004665981054 | I76: 0.002821033089 | J76: 0.0276955493
A77: 27.5 | B77: 0.02592520758 | C77: 0.002788107433 | D77: 0.0005468872526 | E77: 0.002841237182 | G77: 0.002788107433 | H77: 0.0005468872526 | I77: 0.002841237182 | J77: 0.02753340554
A78: 28 | B78: 0.02576907332 | C78: 0.002795089409 | D78: 0.0006283800366 | E78: 0.002864853622 | G78: 0.002795089409 | H78: 0.0006283800366 | I78: 0.002864853622 | J78: 0.02735477879
A79: 28.5 | B79: 0.02602255355 | C79: 0.002803191404 | D79: 0.0007112768802 | E79: 0.002892022968 | G79: 0.002803191404 | H79: 0.0007112768802 | I79: 0.002892022968 | J79: 0.02716087803
A80: 29 | B80: 0.02656704092 | C80: 0.002812488285 | D80: 0.0007957950379 | E80: 0.002922906104 | G80: 0.002812488285 | H80: 0.0007957950379 | I80: 0.002922906104 | J80: 0.02695297127
A81: 29.5 | B81: 0.027202252 | C81: 0.002823067973 | D81: 0.0008821645976 | E81: 0.002957689497 | G81: 0.002823067973 | H81: 0.0008821645976 | I81: 0.002957689497 | J81: 0.02673237851
A82: 30 | B82: 0.02770024287 | C82: 0.002835052646 | D82: 0.0009706251976 | E82: 0.002996604208 | G82: 0.002835052646 | H82: 0.0009706251976 | I82: 0.002996604208 | J82: 0.02650046775
A83: 30.5 | B83: 0.02786684496 | C83: 0.002848558863 | D83: 0.001061452404 | E83: 0.003039896183 | G83: 0.002848558863 | H83: 0.001061452404 | I83: 0.003039896183 | J83: 0.02625864699
A84: 31 | B84: 0.02759406771 | C84: 0.002863730957 | D84: 0.001154932404 | E84: 0.003087851009 | G84: 0.002863730957 | H84: 0.001154932404 | I84: 0.003087851009 | J84: 0.02600836224
A85: 31.5 | B85: 0.02688941495 | C85: 0.002880746918 | D85: 0.001251386148 | E85: 0.003140807237 | G85: 0.002880746918 | H85: 0.001251386148 | I85: 0.003140807237 | J85: 0.02575109048
A86: 32 | B86: 0.02587426207 | C86: 0.002899814391 | D86: 0.001351174793 | E86: 0.003199155642 | G86: 0.002899814391 | H86: 0.001351174793 | I86: 0.003199155642 | J86: 0.02548833172
A87: 32.5 | B87: 0.02475173247 | C87: 0.002921170219 | D87: 0.001454675822 | E87: 0.003263329158 | G87: 0.002921170219 | H87: 0.001454675822 | I87: =IF(G87="","",SQRT(G87^2+H87^2)) -> 0.003263329158 | J87: 0.02522160596
A88: 33 | B88: 0.02375267409 | C88: 0.002945087737 | D88: 0.001562336725 | E88: =IF(B88="","",SQRT(C88^2+D88^2)) -> 0.003333832302 | G88: =IF(B88="","",IF($F88="",C88,$F88*C88)) -> 0.002945087737 | H88: =IF(B88="","",IF($F88="",D88,$F88*D88)) -> 0.001562336725 | I88: 0.003333832302 | J88: 0.0249524492
A89: 33.5 | B89: 0.02307420448 | C89: 0.002971909679 | D89: 0.001674643382 | E89: 0.003411257481 | G89: 0.002971909679 | H89: 0.001674643382 | I89: 0.003411257481 | J89: 0.02468240245
A90: 34 | B90: 0.02282730722 | C90: 0.003002024358 | D90: 0.001792145991 | E90: 0.003496274803 | G90: 0.003002024358 | H90: 0.001792145991 | I90: 0.003496274803 | J90: 0.02441301269
A91: 34.5 | B91: 0.02300749646 | C91: 0.003035906165 | D91: 0.001915463705 | E91: 0.003589669545 | G91: 0.003035906165 | H91: 0.001915463705 | I91: 0.003589669545 | J91: 0.02414582093
A92: 35 | B92: 0.02349643182 | C92: 0.003074110254 | D92: 0.002045314321 | E92: 0.003692352167 | G92: 0.003074110254 | H92: 0.002045314321 | I92: 0.003692352167 | J92: 0.02388236217
A93: 35.5 | B93: 0.02409403091 | C93: 0.003117328077 | D93: 0.002182499427 | E93: 0.003805395918 | G93: 0.003117328077 | H93: 0.002182499427 | I93: 0.003805395918 | J93: 0.02362415741
A94: 36 | B94: 0.02457248077 | C94: 0.003166385391 | D94: 0.002327958391 | E94: 0.003930061922 | G94: 0.003166385391 | H94: 0.002327958391 | I94: 0.003930061922 | J94: 0.02337270566
A95: 36.5 | B95: 0.02473768086 | C95: 0.003222275573 | D95: 0.002482772323 | E95: 0.004067827219 | G95: 0.003222275573 | H95: 0.002482772323 | I95: 0.004067827219 | J95: 0.0231294829
A96: 37 | B96: 0.02448163961 | C96: 0.003286254316 | D96: 0.002648193101 | E96: 0.004220473212 | G96: 0.003286254316 | H96: 0.002648193101 | I96: 0.004220473212 | J96: 0.02289593414
A97: 37.5 | B97: 0.02381179185 | C97: 0.003359863571 | D97: 0.002825701631 | E97: 0.004390133588 | G97: 0.003359863571 | H97: 0.002825701631 | I97: 0.004390133588 | J97: 0.02267346738
A98: 38 | B98: 0.02284937998 | C98: 0.003445044585 | D98: 0.003017025604 | E98: 0.004579385951 | G98: 0.003445044585 | H98: 0.003017025604 | I98: 0.004579385951 | J98: 0.02246344962
A99: 38.5 | B99: 0.02179732637 | C99: 0.00354426014 | D99: 0.003224215635 | E99: 0.004791382515 | G99: 0.00354426014 | H99: 0.003224215635 | I99: 0.004791382515 | J99: 0.02226719986
A100: 39 | B100: 0.02088620899 | C100: 0.003660660826 | D100: 0.003449739041 | E100: 0.005030023572 | G100: 0.003660660826 | H100: 0.003449739041 | I100: 0.005030023572 | J100: 0.02208598411
A101: 39.5 | B101: 0.02031281238 | C101: 0.003798371688 | D101: 0.003696528553 | E101: 0.005300184037 | G101: 0.003798371688 | H101: 0.003696528553 | I101: 0.005300184037 | J101: 0.02192101035
A102: 40 | B102: 0.02018771512 | C102: 0.003962782391 | D102: 0.003968155058 | E102: 0.005608020938 | G102: 0.003962782391 | H102: 0.003968155058 | I102: 0.005608020938 | J102: 0.02177342059
A103: 40.5 | B103: 0.02050596536 | C103: 0.004161169931 | D103: 0.004268944942 | E103: 0.005961478517 | G103: 0.004161169931 | H103: 0.004268944942 | I103: 0.005961478517 | J103: 0.02164428983
A104: 41 | B104: 0.02114868572 | C104: 0.004403429338 | D104: 0.00460418747 | E104: 0.006370928676 | G104: 0.004403429338 | H104: 0.00460418747 | I104: 0.006370928676 | J104: 0.02153461607
A105: 41.5 | B105: 0.02191519081 | C105: 0.004703361701 | D105: 0.004980366576 | E105: 0.006850230837 | G105: 0.004703361701 | H105: 0.004980366576 | I105: 0.006850230837 | J105: 0.02144531732
A106: 42 | B106: 0.02257699767 | C106: 0.005080620136 | D106: 0.00540541998 | E106: 0.007418306149 | G106: 0.005080620136 | H106: 0.00540541998 | I106: 0.007418306149 | J106: 0.02137722256
A107: 42.5 | B107: 0.02293927077 | C107: 0.005563994206 | D107: 0.005888950679 | E107: 0.008101714116 | G107: 0.005563994206 | H107: 0.005888950679 | I107: 0.008101714116 | J107: 0.0213310728
A108: 43 | B108: 0.02289321351 | C108: 0.006196941246 | D108: 0.006442267946 | E108: 0.008938953915 | G108: 0.006196941246 | H108: 0.006442267946 | I108: 0.008938953915 | J108: 0.02130750804
A109: 43.5 | B109: 0.02244539176 | C109: 0.007047538677 | D109: 0.007077689205 | E109: 0.009988067174 | G109: 0.007047538677 | H109: 0.007077689205 | I109: 0.009988067174 | J109: 0.02130706728
A110: 44 | B110: 0.02171610988 | C110: 0.06581623498 | D110: 0.06244522822 | E110: 0.09072586905 | G110: 0.06581623498 | H110: 0.06244522822 | I110: 0.09072586905 | J110: 0.02133017953
A111: 44.5 | B111: 0.02090728627 | C111: 0.009926915202 | D111: 0.00862536353 | E111: 0.01315068597 | G111: 0.009926915202 | H111: 0.00862536353 | I111: 0.01315068597 | J111: 0.02137715977
A112: 45 | B112: 0.02024842789 | C112: 0.0124980031 | D112: 0.009494745985 | E112: 0.01569554977 | G112: 0.0124980031 | H112: 0.009494745985 | I112: 0.01569554977 | J112: 0.02144820301
A113: 45.5 | B113: 0.01993518128 | C113: 0.01663325027 | D113: 0.01022943535 | E113: 0.01952706742 | G113: 0.01663325027 | H113: 0.01022943535 | I113: 0.01952706742 | J113: 0.02154337925
A114: 46 | B114: 0.02007692202 | C114: 0.02382495055 | D114: 0.0101218693 | E114: 0.02588591329 | G114: 0.02382495055 | H114: 0.0101218693 | I114: 0.02588591329 | J114: 0.02166262749
A115: 46.5 | B115: 0.02066742426 | C115: 0.03749905788 | D115: 0.006225265625 | E115: 0.03801227794 | G115: 0.03749905788 | H115: 0.006225265625 | I115: 0.03801227794 | J115: 0.02180574873
A116: 47 | B116: 0.02158647262 | C116: 0.062526944 | D116: -0.01621359708 | E116: 0.06459488723 | G116: 0.062526944 | H116: -0.01621359708 | I116: 0.06459488723 | J116: 0.02197240298
A117: 47.5 | B117: 0.02263197671 | C117: -0.1617823677 | D117: -0.01195817995 | E117: 0.1622237115 | G117: -0.1617823677 | H117: -0.01195817995 | I117: 0.1622237115 | J117: 0.02216210322
A118: 48
A119: 48.5
A120: 49
A121: 49.5
A122: 50
A123: 50.5
A124: 51
A125: 51.5
A126: 52
A127: 52.5
A128: 53
A129: 53.5
A130: 54
A131: 54.5
A132: 55
A133: 55.5
A134: 56
A135: 56.5
A136: 57
A137: 57.5
A138: 58
A139: 58.5
A140: 59
A141: 59.5
A142: 60
A143: 60.5
A144: 61
A145: 61.5
A146: 62
A147: 62.5
A148: 63
A149: 63.5
A150: 64 | I150: =IF(G150="","",SQRT(G150^2+H150^2)) -> 
A151: 64.5 | I151: =IF(G151="","",SQRT(G151^2+H151^2)) -> 
A152: 65 | E152: =IF(B152="","",SQRT(C152^2+D152^2)) ->  | G152: =IF(B152="","",IF($F152="",C152,$F152*C152)) ->  | H152: =IF(B152="","",IF($F152="",D152,$F152*D152)) -> 
A153: 65.5
A154: 66 | I154: =IF(G154="","",SQRT(G154^2+H154^2)) -> 
A155: 66.5 | I155: =IF(G155="","",SQRT(G155^2+H155^2)) -> 
A156: 67
A157: 67.5
A158: 68
A159: 68.5
A160: 69
A161: 69.5
A162: 70
A163: 70.5
A164: 71
A165: 71.5
A166: 72
A167: 72.5
A168: 73
A169: 73.5
A170: 74
A171: 74.5
A172: 75
A173: 75.5
A174: 76
A175: 76.5
A176: 77
A177: 77.5
A178: 78
A179: 78.5
A180: 79
A181: 79.5
A182: 80
A183: 80.5
A184: 81
A185: 81.5
A186: 82
A187: 82.5
A188: 83
A189: 83.5
A190: 84
A191: 84.5
A192: 85
A193: 85.5
A194: 86
A195: 86.5
A196: 87
A197: 87.5
A198: 88
A199: 88.5
A200: 89
A201: 89.5
A202: 90
A203: 90.5
A204: 91
A205: 91.5
A206: 92
A207: 92.5
A208: 93
A209: 93.5
A210: 94
A211: 94.5
A212: 95
A213: 95.5
A214: 96
A215: 96.5
A216: 97 | E216: =IF(B216="","",SQRT(C216^2+D216^2)) ->  | G216: =IF(B216="","",IF($F216="",C216,$F216*C216)) ->  | H216: =IF(B216="","",IF($F216="",D216,$F216*D216)) -> 
A217: 97.5
A218: 98
... 59 more rows

Sheet Example Low Nugget eff. Fig. 5
A1: =DFT!A1 -> SU_Vario_3.0 | C1: Run at: | D1: =IF(AE3<>"",AE3,"Please update SU") -> 2022-05-25T11:27:23 | F1: Runtime: | G1: =IF(AF3<>"",AF3,"Not run") -> 6 | H1: s | I1: N: | J1: =AG3 -> 96 | K1: Mean: | L1: =AH3 -> 0.02407521278 | M1: RSD % | N1: =AI3 -> 11.4053686 | Q1: =DFT!P1 -> Author: Bo Svensmark, svensmark@plen.ku.dk, Analytical Chemistry, ECP, PLEN, University of Copenhagen, 2022 | AL1: Manual:
AB2: Table 2 | AE2: INPUT/OUTPUT for Macros - don't change!
A3: Title: | C3: Example with low nugget effect. Fig 5 A) is graph f(x) and variogram combined, and Fig.5 B) is graph Random systematic sampling in: | U3: In % of RSD(aL)? | AB3: MC runs | AC3: 4000 | AE3: 2022-05-25T11:27:23 | AF3: 6 | AG3: 96 | AH3: 0.02407521278 | AI3: 11.4053686 | AM3: Do only enter values in the WHITE cells
A4: Comments: | C4: Extensions to the Theory of Sampling 2, Proceedings of the 10the World Conference of Sampling and Blending, 2022 | U4: y/n | V4: n | AB4: Max Ni | AC4: 64 | AE4: 0 | AF4: 5 | AG4: 2.336251524e-07
C5: V(0) is rounded to zero | U5: Divisor | V5: =IF(V4="Y",N1/100,1) -> 1 | AB5: N(Nugget) | AC5: 5 | AM5: 1) Enter the input data f(x) in Table 1
C6: To make your own estimates, start with the Sheet SU-Vario | L6: Manual in cell AL1 | Q6: =IF(L1<>0,IF(AVERAGE(Y10:Y1289)<>L1,"New data: Please update SU",""),"") ->  | AB6: N | AC6: =COUNT(Y10:Y1290) -> 96 | AN6: Max length 1280
P7: Table 3 SU | X7: Table 1
P8: Ni | Q8: j | R8: Syst % | S8: Strat % | T8: Rand % | U8: s1/sq(Ni) | V8: s1/Ni | X8: INPUT | Z8: Variogram | AA8: DFT | AB8: RSD % (n=1) | AM8: 2) Enter/correct parameters in Table 2
P9: 1 | Q9: =IF(P9="","",AC$6/(2*P9)) -> 48 | R9: =IF(AF9<>"",AF9/$V$5,"") -> 10.58061516 | S9: =IF(AG9<>"",AG9/$V$5,"") -> 10.4705441 | T9: =IF(AH9<>"",AH9/$V$5,"") -> 10.39410808 | U9: =IF(AE9<>"",R$9/SQRT(AE9),"") -> 10.58061516 | V9: =IF(AE9<>"",R$9/AE9,"") -> 10.58061516 | X9: x | Y9: y | Z9: V(j) | AB9: Syst | AC9: Random | AE9: 1 | AF9: 10.58061516 | AG9: 10.4705441 | AH9: 10.39410808 | AI9: 0 | AN9: MC: Monte Carlo runs for stratified random and random sampling
P10: 2 | Q10: 24 | R10: =IF(AF10<>"",AF10/$V$5,"") -> 3.641430472 | S10: =IF(AG10<>"",AG10/$V$5,"") -> 4.290218289 | T10: =IF(AH10<>"",AH10/$V$5,"") -> 7.527312185 | U10: 7.481624726 | V10: 5.290307578 | X10: 1 | Y10: 0.02710427524 | Z10: 5.360689592e-08 | AB10: 0.09102353166 | AC10: 0.6800254995 | AE10: 2 | AF10: 3.641430472 | AG10: 4.290218289 | AH10: 7.527312185 | AI10: 0 | AN10: Large no of runs increases accuracy - and runtime…
P11: 3 | Q11: 16 | R11: 2.273271271 | S11: 2.554337796 | T11: 6.007256545 | U11: 6.108721008 | V11: 3.526871719 | X11: 2 | Y11: 0.02580462748 | Z11: 1.973426303e-07 | AA11: 0.02588591329 | AB11: 0.1919516154 | AC11: 0.9423502201 | AE11: 3 | AF11: 2.273271271 | AG11: 2.554337796 | AH11: 6.007256545 | AI11: 0 | AN11: 4000 seems to be a reasonable value
P12: 4 | Q12: 12 | R12: 1.686410707 | S12: 1.700066453 | T12: 5.383002434 | U12: 5.290307578 | V12: 2.645153789 | X12: 3 | Y12: 0.02466456573 | Z12: 4.100535537e-07 | AA12: 0.01569554977 | AB12: 0.2928796992 | AC12: 1.249275021 | AE12: 4 | AF12: 1.686410707 | AG12: 1.700066453 | AH12: 5.383002434 | AI12: 0 | AN12: Max: Max number of increments
P13: 6 | Q13: 8 | R13: 1.145591379 | S13: 0.9785838624 | T13: 4.349280086 | U13: 4.319518049 | V13: 1.763435859 | X13: 4 | Y13: 0.02367386297 | Z13: 6.757235586e-07 | AA13: 0.01134073363 | AB13: 0.4249512922 | AC13: 1.564174795 | AE13: 6 | AF13: 1.145591379 | AG13: 0.9785838624 | AH13: 4.349280086 | AI13: 0 | AN13: N(Nugget): No of pointes for linear extrapolation to V(0)
P14: 8 | Q14: 6 | R14: 0.8891637342 | S14: 0.6543791567 | T14: 3.694468862 | U14: 3.740812363 | V14: 1.322576894 | X14: 5 | Y14: 0.02282265421 | Z14: 9.825421938e-07 | AA14: 0.008938953915 | AB14: 0.5603114572 | AC14: 1.875287666 | AE14: 8 | AF14: 0.8891637342 | AG14: 0.6543791567 | AH14: 3.694468862 | AI14: 0 | AN14: If the number looks wrong, change N(Nugget) and recalculate
P15: 12 | Q15: 4 | R15: 0.642926662 | S15: 0.3743362682 | T15: 3.040005874 | U15: 3.054360504 | V15: 0.8817179296 | X15: 6 | Y15: 0.02210142645 | Z15: 1.322086616e-06 | AA15: 0.007418306149 | AB15: 0.7057395992 | AC15: 2.178649122 | AE15: 12 | AF15: 0.642926662 | AG15: 0.3743362682 | AH15: 3.040005874 | AI15: 0
P16: 16 | Q16: 3 | R16: 0.527112822 | S16: 0.2527930551 | T16: 2.618958108 | U16: 2.645153789 | V16: 0.6612884472 | X16: 7 | Y16: 0.02150101369 | Z16: 1.688607708e-06 | AA16: 0.006370928676 | AB16: 0.8532705959 | AC16: 2.47305226 | AE16: 16 | AF16: 0.527112822 | AG16: 0.2527930551 | AH16: 2.618958108 | AI16: 0 | AM16: 3) Press the button Update SU
X17: 8 | Y17: 0.02101259493 | Z17: 2.078411595e-06 | AA17: 0.005608020938 | AB17: 1.003925526 | AC17: 2.758395224 | AN17: See the progress in the lower left corner
X18: 9 | Y18: 0.02062768518 | Z18: 2.489327593e-06 | AA18: 0.005030023572 | AB18: 1.154315964 | AC18: 3.035052132 | AN18: If it takes too ling time press ESC and then End
X19: 10 | Y19: 0.02033813242 | Z19: 2.920254985e-06 | AA19: 0.004579385951 | AB19: 1.304396832 | AC19: 3.303601794
X20: 11 | Y20: 0.02013610766 | Z20: 3.370780602e-06 | AA20: 0.004220473212 | AB20: 1.452482985 | AC20: 3.564698765 | AM20: 4) Analyse the results in Table 3 & 4 - and the graphs
X21: 12 | Y21: 0.0200141069 | Z21: 3.840861274e-06 | AA21: 0.003930061922 | AB21: 1.598363021 | AC21: 3.819007431 | AN21: Results can be shown as RSD % or in % of RSD(aL)
X22: 13 | Y22: 0.01996493714 | Z22: 4.330563343e-06 | AA22: 0.003692352167 | AB22: 1.741179411 | AC22: 4.067166622
H23: Nugget V(0) = | J23: =AE4 -> 0 | X23: 14 | Y23: 0.01998171639 | Z23: 4.8398543e-06 | AA23: 0.003496274803 | AB23: 1.880789468 | AC23: 4.309770191 | AM23: 5) To make a Discrete Fourier analysis of the data press DFT
X24: 15 | Y24: 0.02005786563 | Z24: 5.368440399e-06 | AA24: 0.003333832302 | AB24: 2.016814466 | AC24: 4.547356534 | AN24: The cyclic components of the data can be analysed
P25: Table 4 Variogram integration | X25: 16 | Y25: 0.02018710487 | Z25: 5.91564527e-06 | AA25: 0.003199155642 | AB25: 2.14924448 | AC25: 4.780403413 | AN25: DFT-filtering can be used to attenuate or amplify cyclic variations
P26: Ni | Q26: j | R26: Syst % | S26: Strat % | T26: Rand % | U26: s1/sq(Ni) | V26: s1/Ni | X26: 17 | Y26: 0.02036344611 | Z26: 6.48032453e-06 | AA26: 0.003087851009 | AB26: 2.278012682 | AC26: 5.009326112
P27: 1 | Q27: =IF(P27="","",AC$6/(2*P27)) -> 48 | R27: =IF(AF27<>"",AF27/$V$5,"") -> 6.413955127 | S27: =IF(AG27<>"",AG27/$V$5,"") -> 10.39439413 | T27: =IF(AH27<>"",AH27/$V$5,"") -> 10.39439413 | U27: =IF(AE27<>"",R$27/SQRT(AE27),"") -> 6.413955127 | V27: =IF(AE27<>"",R$27/AE27,"") -> 6.413955127 | X27: 18 | Y27: 0.02058118835 | Z27: 7.060812082e-06 | AA27: 0.002996604208 | AB27: 2.403251718 | AC27: 5.234477755 | AE27: 1 | AF27: 6.413955127 | AG27: 10.39439413 | AH27: 10.39439413 | AM27: 6) Save the workbook under a new name: Save As…
P28: 2 | Q28: 24 | R28: 2.188386521 | S28: 4.609460743 | T28: 7.349946578 | U28: 4.535351165 | V28: 3.206977564 | X28: 19 | Y28: 0.0208349116 | Z28: 7.654893922e-06 | AA28: 0.002922906104 | AB28: 2.525113709 | AC28: 5.456151091 | AE28: 2 | AF28: 2.188386521 | AG28: 4.609460743 | AH28: 7.349946578
P29: 3 | Q29: 16 | R29: 1.240866879 | S29: 2.759967197 | T29: 6.001206251 | U29: 3.703098719 | V29: 2.137985042 | X29: 20 | Y29: 0.02111947384 | Z29: 8.259805924e-06 | AA29: 0.002864853622 | AB29: 2.64386342 | AC29: 5.674581263 | AE29: 3 | AF29: 1.240866879 | AG29: 2.759967197 | AH29: 6.001206251 | AM29: 7) To continue: Change input and try again - or create a new sheet
P30: 4 | Q30: 12 | R30: 0.7991815104 | S30: 1.909503716 | T30: 5.197197067 | U30: 3.206977564 | V30: 1.603488782 | X30: 21 | Y30: 0.02143000108 | Z30: 8.872251505e-06 | AA30: 0.002821033089 | AB30: 2.759811713 | AC30: 5.889949271 | AE30: 4 | AF30: 0.7991815104 | AG30: 1.909503716 | AH30: 5.197197067
P31: 6 | Q31: 8 | R31: 0.4098508799 | S31: 1.126110135 | T31: 4.243493635 | U31: 2.618486216 | V31: 1.068992521 | X31: 22 | Y31: 0.02176188432 | Z31: 9.488436564e-06 | AA31: 0.002790420166 | AB31: 2.873335584 | AC31: 6.102385871 | AE31: 6 | AF31: 0.4098508799 | AG31: 1.126110135 | AH31: 4.243493635 | AM31: 8) To create a new sheet press the New Sheet button
P32: 8 | Q32: 6 | R32: 0.2495166282 | S32: 0.7702687838 | T32: 3.674973289 | U32: 2.267675582 | V32: 0.8017443909 | X32: 23 | Y32: 0.02211077556 | Z32: 1.01041187e-05 | AA32: 0.002772313754 | AB32: 2.98485913 | AC32: 6.311975759 | AE32: 8 | AF32: 0.2495166282 | AG32: 0.7702687838 | AH32: 3.674973289 | AN32: The new sheet will contain a copy of data in Table 1 to 3
P33: 12 | Q33: 4 | R33: 0.1226728715 | S33: 0.4515383694 | T33: 3.000603125 | U33: 1.85154936 | V33: 0.5344962606 | X33: 24 | Y33: 0.0224725768 | Z33: 1.071466745e-05 | AA33: 0.002766325391 | AB33: 3.094845898 | AC33: 6.518761898 | AE33: 12 | AF33: 0.1226728715 | AG33: 0.4515383694 | AH33: 3.000603125
P34: 16 | Q34: 3 | R34: 0.07321992481 | S34: 0.3123187553 | T34: 2.598598533 | U34: 1.603488782 | V34: 0.4008721955 | X34: 25 | Y34: 0.02284344305 | Z34: 1.131513417e-05 | AB34: 3.203793689 | AC34: 6.722749888 | AE34: 16 | AF34: 0.07321992481 | AG34: 0.3123187553 | AH34: 2.598598533 | AM34: 9) Troubleshooting
X35: 26 | Y35: 0.02321976629 | Z35: 1.190032796e-05 | AB35: 3.312222529 | AC35: 6.9239123 | AN35: If you get a runtime error in the macros:
X36: 27 | Y36: 0.02359817853 | Z36: 1.246489693e-05 | AB36: 3.420666474 | AC36: 7.122192907 | AN36: Press Debug in the pop up window
X37: 28 | Y37: 0.02397554377 | Z37: 1.300341222e-05 | AB37: 3.529668885 | AC37: 7.317510773 | AN37: Look at the code and try to understand the problem
X38: 29 | Y38: 0.02434895001 | Z38: 1.351045324e-05 | AB38: 3.639763603 | AC38: 7.509764156 | AN38: Press the reset button (blue square in the tools) and try to fix the
X39: 30 | Y39: 0.02471570426 | Z39: 1.398069253e-05 | AB39: 3.751483016 | AC39: 7.698834205 | AN39: error or go to the spreadsheet and fix the error
X40: 31 | Y40: 0.0250733315 | Z40: 1.440897959e-05 | AB40: 3.86532618 | AC40: 7.884588429
X41: 32 | Y41: 0.02541956274 | Z41: 1.479042135e-05 | AB41: 3.981781694 | AC41: 8.066883941
X42: 33 | Y42: 0.02575233398 | Z42: 1.512045936e-05 | AB42: 4.101283272 | AC42: 8.245570461
X43: 34 | Y43: 0.02606977822 | Z43: 1.53949419e-05 | AB43: 4.22424742 | AC43: 8.420493082
X44: 35 | Y44: 0.02637022146 | Z44: 1.561019061e-05 | AB44: 4.351018444 | AC44: 8.59149481 | AE44: Lot variance | AH44: Nugget effect
X45: 36 | Y45: 0.02665217471 | Z45: 1.576306095e-05 | AB45: 4.481919641 | AC45: 8.758418881 | AE45: x | AF45: Var | AH45: x | AI45: V(j)
X46: 37 | Y46: 0.02691433195 | Z46: 1.585099572e-05 | AB46: 4.617190276 | AC46: 8.92111086 | AE46: 0 | AF46: =(AH3*AI3/100)^2 -> 7.539784254e-06 | AH46: 0 | AI46: =AE4 -> 0
X47: 38 | Y47: 0.02715556219 | Z47: 1.587207096e-05 | AB47: 4.757048147 | AC47: 9.079420546 | AE47: =AG3/2 -> 48 | AF47: =AF46 -> 7.539784254e-06 | AH47: =AF4 -> 5 | AI47: =AG4*AH47+AI46 -> 1.168125762e-06
X48: 39 | Y48: 0.02737490443 | Z48: 1.582503422e-05 | AB48: 4.901621047 | AC48: 9.233203676
X49: 40 | Y49: 0.02757156167 | Z49: 1.570933444e-05 | AB49: 5.051018017 | AC49: 9.382323459 | AE49: Variogram points
X50: 41 | Y50: 0.02774489592 | Z50: 1.552514342e-05 | AB50: 5.205257504 | AC50: 9.526651938 | AE50: Ni | AF50: j | AG50: V(j) | AH50: DFT
X51: 42 | Y51: 0.02789442116 | Z51: 1.527336837e-05 | AB51: 5.36434441 | AC51: 9.666071193 | AE51: =AE9 -> 1 | AF51: =IF(AE51=0,0,$AC$6/(2*AE51)) -> 48 | AG51: =IF(AF51=0,NA(),VLOOKUP(AF51,X$10:Z$649,3)) -> 1.248595525e-05 | AH51: =NA() -> 
X52: 43 | Y52: 0.0280198024 | Z52: 1.49556554e-05 | AB52: 5.528196778 | AC52: 9.800474403 | AE52: =AE10 -> 2 | AF52: =IF(AE52=0,0,$AC$6/(2*AE52)) -> 24 | AG52: =IF(AF52=0,NA(),VLOOKUP(AF52,X$10:Z$649,3)) -> 1.071466745e-05 | AH52: =IF(AE52=0,NA(),VLOOKUP((AE52),X$10:AA$649,4)) -> 0.02588591329
X53: 44 | Y53: 0.02812084364 | Z53: 1.457438466e-05 | AB53: 5.696725826 | AC53: 9.929766772 | AE53: 3 | AF53: 16 | AG53: 5.91564527e-06 | AH53: 0.01569554977
X54: 45 | Y54: 0.02819748588 | Z54: 1.413265564e-05 | AB54: 5.869762649 | AC54: 10.05386632 | AE54: 4 | AF54: 12 | AG54: 3.840861274e-06 | AH54: 0.01134073363
X55: 46 | Y55: 0.02824980213 | Z55: 1.363426411e-05 | AB55: 6.047138726 | AC55: 10.17270458 | AE55: 6 | AF55: 8 | AG55: 2.078411595e-06 | AH55: 0.007418306149
X56: 47 | Y56: 0.02827798937 | Z56: 1.308366972e-05 | AB56: 6.228613863 | AC56: 10.28622714 | AE56: 8 | AF56: 6 | AG56: 1.322086616e-06 | AH56: 0.005608020938
X57: 48 | Y57: 0.02828236561 | Z57: 1.248595525e-05 | AB57: 6.413955127 | AC57: 10.39439413 | AE57: 12 | AF57: 4 | AG57: 6.757235586e-07 | AH57: 0.003930061922
X58: 49 | Y58: 0.02826336285 | AE58: 16 | AF58: 3 | AG58: 4.100535537e-07 | AH58: 0.003199155642
X59: 50 | Y59: 0.02822152209 | AE59: 0 | AF59: 0
X60: 51 | Y60: 0.02815748533 | AE60: 0 | AF60: 0
X61: 52 | Y61: 0.02807199458 | AE61: 0 | AF61: 0
X62: 53 | Y62: 0.02796588182 | AE62: 0 | AF62: 0
X63: 54 | Y63: 0.02784006706 | AE63: 0 | AF63: 0
X64: 55 | Y64: 0.0276955493 | AE64: 0 | AF64: 0
X65: 56 | Y65: 0.02753340554 | AE65: 0 | AF65: 0
X66: 57 | Y66: 0.02735477879 | AE66: 0 | AF66: 0
X67: 58 | Y67: 0.02716087803
X68: 59 | Y68: 0.02695297127
X69: 60 | Y69: 0.02673237851
X70: 61 | Y70: 0.02650046775
X71: 62 | Y71: 0.02625864699
X72: 63 | Y72: 0.02600836224
X73: 64 | Y73: 0.02575109048
X74: 65 | Y74: 0.02548833172
X75: 66 | Y75: 0.02522160596
X76: 67 | Y76: 0.0249524492
X77: 68 | Y77: 0.02468240245
X78: 69 | Y78: 0.02441301269
X79: 70 | Y79: 0.02414582093
X80: 71 | Y80: 0.02388236217
X81: 72 | Y81: 0.02362415741
X82: 73 | Y82: 0.02337270566
X83: 74 | Y83: 0.0231294829
X84: 75 | Y84: 0.02289593414
X85: 76 | Y85: 0.02267346738
X86: 77 | Y86: 0.02246344962
X87: 78 | Y87: 0.02226719986
X88: 79 | Y88: 0.02208598411
X89: 80 | Y89: 0.02192101035
X90: 81 | Y90: 0.02177342059
X91: 82 | Y91: 0.02164428983
X92: 83 | Y92: 0.02153461607
X93: 84 | Y93: 0.02144531732
X94: 85 | Y94: 0.02137722256
X95: 86 | Y95: 0.0213310728
X96: 87 | Y96: 0.02130750804
X97: 88 | Y97: 0.02130706728
X98: 89 | Y98: 0.02133017953
X99: 90 | Y99: 0.02137715977
X100: 91 | Y100: 0.02144820301
X101: 92 | Y101: 0.02154337925
X102: 93 | Y102: 0.02166262749
X103: 94 | Y103: 0.02180574873
X104: 95 | Y104: 0.02197240298
X105: 96 | Y105: 0.02216210322
X106: 97
X107: 98
X108: 99
X109: 100
X110: 101
X111: 102
X112: 103
X113: 104
X114: 105
X115: 106
X116: 107
X117: 108
X118: 109
X119: 110
X120: 111
X121: 112
X122: 113
X123: 114
X124: 115
X125: 116
X126: 117
X127: 118
X128: 119
X129: 120
X130: 121
X131: 122
X132: 123
X133: 124
X134: 125
X135: 126
X136: 127
X137: 128

Sheet Example Low Nugget + Cyclic var
A1: =DFT!A1 -> SU_Vario_3.0 | C1: Run at: | D1: =IF(AE3<>"",AE3,"Please update SU") -> 2022-03-17T11:18:57 | F1: Runtime: | G1: =IF(AF3<>"",AF3,"Not run") -> 9 | H1: s | I1: N: | J1: =AG3 -> 96 | K1: Mean: | L1: =AH3 -> 0.02407521278 | M1: RSD % | N1: =AI3 -> 12.67827243 | Q1: =DFT!P1 -> Author: Bo Svensmark, svensmark@plen.ku.dk, Analytical Chemistry, ECP, PLEN, University of Copenhagen, 2022 | AL1: Manual:
AB2: Table 2 | AE2: INPUT/OUTPUT for Macros - don't change!
A3: Title: | U3: In % of RSD(aL)? | AB3: MC runs | AC3: 4000 | AE3: 2022-03-17T11:18:57 | AF3: 9 | AG3: 96 | AH3: 0.02407521278 | AI3: 12.67827243 | AM3: Do only enter values in the WHITE cells
A4: Comments: | C4: Cyclic variations with a period of j = 12 is added. A period of 12 corresponds to Ni= 4. | U4: y/n | V4: n | AB4: Max Ni | AC4: 64 | AE4: 0 | AF4: 5 | AG4: 9.243573543e-07
U5: Divisor | V5: =IF(V4="Y",N1/100,1) -> 1 | AB5: N(Nugget) | AC5: 5 | AM5: 1) Enter the input data f(x) in Table 1
Q6: =IF(L1<>0,IF(AVERAGE(Y10:Y1289)<>L1,"New data: Please update SU",""),"") ->  | AB6: N | AC6: =COUNT(Y10:Y1290) -> 96 | AN6: Max length 1280
P7: Table 3 SU | X7: Table 1
P8: Ni | Q8: j | R8: Syst % | S8: Strat % | T8: Rand % | U8: s1/sq(Ni) | V8: s1/Ni | X8: INPUT | Z8: Variogram | AA8: DFT | AB8: RSD % (n=1) | AM8: 2) Enter/correct parameters in Table 2
P9: 1 | Q9: =IF(P9="","",AC$6/(2*P9)) -> 48 | R9: =IF(AF9<>"",AF9/$V$5,"") -> 11.7142371 | S9: =IF(AG9<>"",AG9/$V$5,"") -> 11.54910064 | T9: =IF(AH9<>"",AH9/$V$5,"") -> 11.70153233 | U9: =IF(AE9<>"",R$9/SQRT(AE9),"") -> 11.7142371 | V9: =IF(AE9<>"",R$9/AE9,"") -> 11.7142371 | X9: x | Y9: y | Z9: V(j) | AB9: Syst | AC9: Random | AE9: 1 | AF9: 11.7142371 | AG9: 11.54910064 | AH9: 11.70153233 | AI9: 0 | AN9: MC: Monte Carlo runs for stratified random and random sampling
P10: 2 | Q10: 24 | R10: =IF(AF10<>"",AF10/$V$5,"") -> 6.296408541 | S10: 5.623815209 | T10: 8.185636723 | U10: 8.283216489 | V10: 5.857118549 | X10: 1 | Y10: 0.02830405036 | Z10: 2.508880724e-07 | AB10: 0.09972797514 | AC10: 1.471142952 | AE10: 2 | AF10: 6.296408541 | AG10: 5.623815209 | AH10: 8.185636723 | AI10: 0 | AN10: Large no of runs increases accuracy - and runtime…
P11: 3 | Q11: 16 | R11: 2.273271271 | S11: 3.783565461 | T11: 6.720357849 | U11: 6.763217942 | V11: 3.9047457 | X11: 2 | Y11: 0.02741282545 | Z11: 9.442856875e-07 | AA11: 0.02588591329 | AB11: 0.3575113931 | AC11: 2.049563068 | AE11: 3 | AF11: 2.273271271 | AG11: 3.783565461 | AH11: 6.720357849 | AI11: 0 | AN11: 4000 seems to be a reasonable value
P12: 4 | Q12: 12 | R12: 5.628663499 | S12: 3.06926835 | T12: 5.799063882 | U12: 5.857118549 | V12: 2.928559275 | X12: 3 | Y12: 0.0262502712 | Z12: 1.922275458e-06 | AA12: 0.01569554977 | AB12: 0.6152948111 | AC12: 2.717833495 | AE12: 4 | AF12: 5.628663499 | AG12: 3.06926835 | AH12: 5.799063882 | AI12: 0 | AN12: Max: Max number of increments
P13: 6 | Q13: 8 | R13: 1.145591379 | S13: 2.174820063 | T13: 4.7050916 | U13: 4.78231727 | V13: 1.95237285 | X13: 4 | Y13: 0.02481218744 | Z13: 2.968419198e-06 | AA13: 0.09072586905 | AB13: 1.015980802 | AC13: 3.38261658 | AE13: 6 | AF13: 1.145591379 | AG13: 2.174820063 | AH13: 4.7050916 | AI13: 0 | AN13: N(Nugget): No of pointes for linear extrapolation to V(0)
P14: 8 | Q14: 6 | R14: 0.8891637342 | S14: 1.559289843 | T14: 4.026835128 | U14: 4.141608245 | V14: 1.464279637 | X14: 5 | Y14: 0.02320858456 | Z14: 3.860608088e-06 | AA14: 0.008938953915 | AB14: 1.46721739 | AC14: 4.003830717 | AE14: 8 | AF14: 0.8891637342 | AG14: 1.559289843 | AH14: 4.026835128 | AI14: 0 | AN14: If the number looks wrong, change N(Nugget) and recalculate
P15: 12 | Q15: 4 | R15: 0.642926662 | S15: 0.9542523056 | T15: 3.359829918 | U15: 3.381608971 | V15: 0.9761864249 | X15: 6 | Y15: 0.02163155296 | Z15: 4.426876207e-06 | AA15: 0.007418306149 | AB15: 1.999982885 | AC15: 4.560886307 | AE15: 12 | AF15: 0.642926662 | AG15: 0.9542523056 | AH15: 3.359829918 | AI15: 0
P16: 16 | Q16: 3 | R16: 0.527112822 | S16: 0.6537539969 | T16: 2.867003536 | U16: 2.928559275 | V16: 0.7321398187 | X16: 7 | Y16: 0.02030123858 | Z16: 4.591982658e-06 | AA16: 0.006370928676 | AB16: 2.567051279 | AC16: 5.043173237 | AE16: 16 | AF16: 0.527112822 | AG16: 0.6537539969 | AH16: 2.867003536 | AI16: 0 | AM16: 3) Press the button Update SU
X17: 8 | Y17: 0.01940439697 | Z17: 4.401580314e-06 | AA17: 0.005608020938 | AB17: 3.166017294 | AC17: 5.447210043 | AN17: See the progress in the lower left corner
X18: 9 | Y18: 0.01904197971 | Z18: 4.013041079e-06 | AA18: 0.005030023572 | AB18: 3.763460089 | AC18: 5.775589587 | AN18: If it takes too ling time press ESC and then End
X19: 10 | Y19: 0.01919980795 | Z19: 3.651176887e-06 | AA19: 0.004579385951 | AB19: 4.34564821 | AC19: 6.036218024
X20: 11 | Y20: 0.01975017731 | Z20: 3.541047318e-06 | AA20: 0.004220473212 | AB20: 4.887956169 | AC20: 6.241285509 | AM20: 4) Analyse the results in Table 3 & 4 - and the graphs
X21: 12 | Y21: 0.0204839804 | Z21: 3.840861274e-06 | AA21: 0.003930061922 | AB21: 5.375571895 | AC21: 6.405787086 | AN21: Results can be shown as RSD % or in % of RSD(aL)
X22: 13 | Y22: 0.02116471226 | Z22: 4.598118186e-06 | AA22: 0.003692352167 | AB22: 5.793589852 | AC22: 6.545656445
H23: Nugget V(0) = | J23: =AE4 -> 0 | X23: 14 | Y23: 0.02158991435 | Z23: 5.741169135e-06 | AA23: 0.003496274803 | AB23: 6.132178895 | AC23: 6.675761937 | AM23: 5) To make a Discrete Fourier analysis of the data press DFT
X24: 15 | Y24: 0.0216435711 | Z24: 7.103669243e-06 | AA24: 0.003333832302 | AB24: 6.387069841 | AC24: 6.808125444 | AN24: The cyclic components of the data can be analysed
P25: Table 4 Variogram integration | X25: 16 | Y25: 0.02132542934 | Z25: 8.469906347e-06 | AA25: 0.003199155642 | AB25: 6.55600675 | AC25: 6.950722145 | AN25: DFT-filtering can be used to attenuate or amplify cyclic variations
P26: Ni | Q26: j | R26: Syst % | S26: Strat % | T26: Rand % | U26: s1/sq(Ni) | V26: s1/Ni | X26: 17 | Y26: 0.02074937646 | Z26: 9.627916791e-06 | AA26: 0.003087851009 | AB26: 6.644525137 | AC26: 7.107090851
P27: 1 | Q27: =IF(P27="","",AC$6/(2*P27)) -> 48 | R27: =IF(AF27<>"",AF27/$V$5,"") -> 8.296323499 | S27: 11.66451309 | T27: 11.66451309 | U27: =IF(AE27<>"",R$27/SQRT(AE27),"") -> 8.296323499 | V27: =IF(AE27<>"",R$27/AE27,"") -> 8.296323499 | X27: 18 | Y27: 0.02011131486 | Z27: 1.042049705e-05 | AA27: 0.002996604208 | AB27: 6.65801999 | AC27: 7.27677324 | AE27: 1 | AF27: 8.296323499 | AG27: 11.66451309 | AH27: 11.66451309 | AM27: 6) Save the workbook under a new name: Save As…
P28: 2 | Q28: 24 | R28: 4.198268805 | S28: 5.902643521 | T28: 8.248056307 | U28: 5.866386605 | V28: 4.14816175 | X28: 19 | Y28: 0.01963513648 | Z28: 1.078565355e-05 | AA28: 0.002922906104 | AB28: 6.609581548 | AC28: 7.456392223 | AE28: 2 | AF28: 4.198268805 | AG28: 5.902643521 | AH28: 8.248056307
P29: 3 | Q29: 16 | R29: 3.785112262 | S29: 4.013001302 | T29: 6.734509774 | U29: 4.789884605 | V29: 2.765441166 | X29: 20 | Y29: 0.01951127587 | Z29: 1.077653165e-05 | AA29: 0.002864853622 | AB29: 6.510747469 | AC29: 7.641052729 | AE29: 3 | AF29: 3.785112262 | AG29: 4.013001302 | AH29: 6.734509774 | AM29: 7) To continue: Change input and try again - or create a new sheet
P30: 4 | Q30: 12 | R30: 2.687785948 | S30: 3.202893543 | T30: 5.832256546 | U30: 4.14816175 | V30: 2.074080875 | X30: 21 | Y30: 0.01984429561 | Z30: 1.055124722e-05 | AA30: 0.002821033089 | AB30: 6.378773691 | AC30: 7.825728713 | AE30: 4 | AF30: 2.687785948 | AG30: 3.202893543 | AH30: 5.832256546
P31: 6 | Q31: 8 | R31: 1.292521148 | S31: 2.223814188 | T31: 4.762017529 | U31: 3.386959886 | V31: 1.382720583 | X31: 22 | Y31: 0.02062355985 | Z31: 1.033042499e-05 | AA31: 0.002790420166 | AB31: 6.228384646 | AC31: 8.006365154 | AE31: 6 | AF31: 1.292521148 | AG31: 2.223814188 | AH31: 4.762017529 | AM31: 8) To create a new sheet press the New Sheet button
P32: 8 | Q32: 6 | R32: 0.7071007302 | S32: 1.612516818 | T32: 4.124028153 | U32: 2.933193303 | V32: 1.037040437 | X32: 23 | Y32: 0.02172484521 | Z32: 1.033337988e-05 | AA32: 0.002772313754 | AB32: 6.076572641 | AC32: 8.180533347 | AE32: 8 | AF32: 0.7071007302 | AG32: 1.612516818 | AH32: 4.124028153 | AN32: The new sheet will contain a copy of data in Table 1 to 3
P33: 12 | Q33: 4 | R33: 0.2932883947 | S33: 0.9764772965 | T33: 3.367254887 | U33: 2.394942303 | V33: 0.6913602916 | X33: 24 | Y33: 0.0229424503 | Z33: 1.071466745e-05 | AA33: 0.002766325391 | AB33: 5.937248682 | AC33: 8.347598521 | AE33: 12 | AF33: 0.2932883947 | AG33: 0.9764772965 | AH33: 3.367254887
P34: 16 | Q34: 3 | R34: 0.1538237028 | S34: 0.6794583738 | T34: 2.916128273 | U34: 2.074080875 | V34: 0.5185202187 | X34: 25 | Y34: 0.02404321816 | Z34: 1.152295973e-05 | AB34: 5.822760226 | AC34: 8.508466384 | AE34: 16 | AF34: 0.1538237028 | AG34: 0.6794583738 | AH34: 2.916128273 | AM34: 9) Troubleshooting
X35: 26 | Y35: 0.02482796425 | Z35: 1.269317528e-05 | AB35: 5.742659738 | AC35: 8.66504968 | AN35: If you get a runtime error in the macros:
X36: 27 | Y36: 0.025183884 | Z36: 1.406838333e-05 | AB36: 5.702166706 | AC36: 8.81962491 | AN36: Press Debug in the pop up window
X37: 28 | Y37: 0.02511386824 | Z37: 1.543972397e-05 | AB37: 5.705019057 | AC37: 8.97423403 | AN37: Look at the code and try to understand the problem
X38: 29 | Y38: 0.02473488037 | Z38: 1.659335354e-05 | AB38: 5.749762358 | AC38: 9.130241728 | AN38: Press the reset button (blue square in the tools) and try to fix the
X39: 30 | Y39: 0.02424583076 | Z39: 1.735782692e-05 | AB39: 5.835257213 | AC39: 9.288106244 | AN39: error or go to the spreadsheet and fix the error
X40: 31 | Y40: 0.02387355638 | Z40: 1.764609058e-05 | AB40: 5.955851294 | AC40: 9.447374423
X41: 32 | Y41: 0.02381136477 | Z41: 1.748223286e-05 | AB41: 6.107388366 | AC41: 9.606872398
X42: 33 | Y42: 0.02416662851 | Z42: 1.700067338e-05 | AB42: 6.282387366 | AC42: 9.765030273
X43: 34 | Y43: 0.02493145375 | Z43: 1.641157968e-05 | AB43: 6.474921575 | AC43: 9.92025529
X44: 35 | Y44: 0.02598429111 | Z44: 1.594046626e-05 | AB44: 6.677082065 | AC44: 10.0712617 | AE44: Lot variance | AH44: Nugget effect
X45: 36 | Y45: 0.0271220482 | Z45: 1.576306095e-05 | AB45: 6.882072923 | AC45: 10.21728371 | AE45: x | AF45: Var | AH45: x | AI45: V(j)
X46: 37 | Y46: 0.02811410707 | Z46: 1.595865298e-05 | AB46: 7.082827373 | AC46: 10.35813625 | AE46: 0 | AF46: =(AH3*AI3/100)^2 -> 9.316663876e-06 | AH46: 0 | AI46: =AE4 -> 0
X47: 38 | Y47: 0.02876376016 | Z47: 1.649464982e-05 | AB47: 7.273095744 | AC47: 10.49413304 | AE47: =AG3/2 -> 48 | AF47: =AF46 -> 9.316663876e-06 | AH47: =AF4 -> 5 | AI47: =AG4*AH47+AI46 -> 4.621786771e-06
X48: 39 | Y48: 0.0289606099 | Z48: 1.724036983e-05 | AB48: 7.448185305 | AC48: 10.62590481
X49: 40 | Y49: 0.02870988615 | Z49: 1.799984366e-05 | AB49: 7.604054595 | AC49: 10.75417481 | AE49: Variogram points
X50: 41 | Y50: 0.02813082627 | Z50: 1.855478525e-05 | AB50: 7.739540127 | AC50: 10.8795451 | AE50: Ni | AF50: j | AG50: V(j) | AH50: DFT
X51: 42 | Y51: 0.02742454766 | Z51: 1.871348616e-05 | AB51: 7.853914487 | AC51: 11.00233533 | AE51: =AE9 -> 1 | AF51: =IF(AE51=0,0,$AC$6/(2*AE51)) -> 48 | AG51: =IF(AF51=0,NA(),VLOOKUP(AF51,X$10:Z$649,3)) -> 1.248595525e-05 | AH51: =NA() -> 
X52: 43 | Y52: 0.02682002728 | Z52: 1.836065699e-05 | AB52: 7.949734041 | AC52: 11.12250139 | AE52: =AE10 -> 2 | AF52: =IF(AE52=0,0,$AC$6/(2*AE52)) -> 24 | AG52: =IF(AF52=0,NA(),VLOOKUP(AF52,X$10:Z$649,3)) -> 1.071466745e-05 | AH52: =IF(AE52=0,NA(),VLOOKUP((AE52),X$10:AA$649,4)) -> 0.02588591329
X53: 44 | Y53: 0.02651264568 | Z53: 1.749616449e-05 | AB53: 8.029653875 | AC53: 11.23964653 | AE53: 3 | AF53: 16 | AG53: 8.469906347e-06 | AH53: 0.01569554977
X54: 45 | Y54: 0.02661178041 | Z54: 1.624543094e-05 | AB54: 8.098976786 | AC54: 11.35311881 | AE54: 4 | AF54: 12 | AG54: 3.840861274e-06 | AH54: 0.09072586905
X55: 46 | Y55: 0.02711147765 | Z55: 1.483021597e-05 | AB55: 8.162610189 | AC55: 11.46216801 | AE55: 6 | AF55: 8 | AG55: 4.401580314e-06 | AH55: 0.007418306149
X56: 47 | Y56: 0.02789205901 | Z56: 1.350557009e-05 | AB56: 8.226650904 | AC56: 11.56611876 | AE56: 8 | AF56: 6 | AG56: 4.426876207e-06 | AH56: 0.005608020938
X57: 48 | Y57: 0.0287522391 | Z57: 1.248595525e-05 | AB57: 8.296323499 | AC57: 11.66451309 | AE57: 12 | AF57: 4 | AG57: 2.968419198e-06 | AH57: 0.003930061922
X58: 49 | Y58: 0.02946313797 | AE58: 16 | AF58: 3 | AG58: 1.922275458e-06 | AH58: 0.003199155642
X59: 50 | Y59: 0.02982972006 | AE59: 0 | AF59: 0
X60: 51 | Y60: 0.0297431908 | AE60: 0 | AF60: 0
X61: 52 | Y61: 0.02921031905 | AE61: 0 | AF61: 0
X62: 53 | Y62: 0.02835181217 | AE62: 0 | AF62: 0
X63: 54 | Y63: 0.02737019357 | AE63: 0 | AF63: 0
X64: 55 | Y64: 0.02649577419 | AE64: 0 | AF64: 0
X65: 56 | Y65: 0.02592520758 | AE65: 0 | AF65: 0
X66: 57 | Y66: 0.02576907332 | AE66: 0 | AF66: 0
X67: 58 | Y67: 0.02602255355
X68: 59 | Y68: 0.02656704092
X69: 60 | Y69: 0.027202252
X70: 61 | Y70: 0.02770024287
X71: 62 | Y71: 0.02786684496
X72: 63 | Y72: 0.02759406771
X73: 64 | Y73: 0.02688941495
X74: 65 | Y74: 0.02587426207
X75: 66 | Y75: 0.02475173247
X76: 67 | Y76: 0.02375267409
X77: 68 | Y77: 0.02307420448
X78: 69 | Y78: 0.02282730722
X79: 70 | Y79: 0.02300749646
X80: 71 | Y80: 0.02349643182
X81: 72 | Y81: 0.02409403091
X82: 73 | Y82: 0.02457248077
X83: 74 | Y83: 0.02473768086
X84: 75 | Y84: 0.02448163961
X85: 76 | Y85: 0.02381179185
X86: 77 | Y86: 0.02284937998
X87: 78 | Y87: 0.02179732637
X88: 79 | Y88: 0.02088620899
X89: 80 | Y89: 0.02031281238
X90: 81 | Y90: 0.02018771512
X91: 82 | Y91: 0.02050596536
X92: 83 | Y92: 0.02114868572
X93: 84 | Y93: 0.02191519081
X94: 85 | Y94: 0.02257699767
X95: 86 | Y95: 0.02293927077
X96: 87 | Y96: 0.02289321351
X97: 88 | Y97: 0.02244539176
X98: 89 | Y98: 0.02171610988
X99: 90 | Y99: 0.02090728627
X100: 91 | Y100: 0.02024842789
X101: 92 | Y101: 0.01993518128
X102: 93 | Y102: 0.02007692202
X103: 94 | Y103: 0.02066742426
X104: 95 | Y104: 0.02158647262
X105: 96 | Y105: 0.02263197671
X106: 97
X107: 98
X108: 99
X109: 100
X110: 101
X111: 102
X112: 103
X113: 104
X114: 105
X115: 106
X116: 107
X117: 108
X118: 109
X119: 110
X120: 111
X121: 112
X122: 113
X123: 114
X124: 115
X125: 116
X126: 117
X127: 118
X128: 119
X129: 120
X130: 121
X131: 122
X132: 123
X133: 124
X134: 125
X135: 126
X136: 127
X137: 128

Sheet SU_Vario
A1: =DFT!A1 -> SU_Vario_3.0 | C1: Run at: | D1: =IF(AE3<>"",AE3,"Please update SU") -> Please update SU | F1: Runtime: | G1: =IF(AF3<>"",AF3,"Not run") -> Not run | H1: s | I1: N: | J1: =AG3 -> 0 | K1: Mean: | L1: =AH3 -> 0 | M1: RSD % | N1: =AI3 -> 0 | Q1: =DFT!P1 -> Author: Bo Svensmark, svensmark@plen.ku.dk, Analytical Chemistry, ECP, PLEN, University of Copenhagen, 2022 | AL1: Manual:
AB2: Table 2 | AE2: INPUT/OUTPUT for Macros - don't change!
A3: Title: | U3: In % of RSD(aL)? | AB3: MC runs | AC3: 4000 | AM3: Do only enter values in the WHITE cells
A4: Comments: | U4: y/n | V4: n | AB4: Max Ni | AC4: 64
U5: Divisor | V5: =IF(V4="Y",N1/100,1) -> 1 | AB5: N(Nugget) | AC5: 5 | AM5: 1) Enter the input data f(x) in Table 1
L6: Manual in cell AL1 | Q6: =IF(L1<>0,IF(AVERAGE(Y10:Y1289)<>L1,"New data: Please update SU",""),"") ->  | AB6: N | AC6: =COUNT(Y10:Y1290) -> 96 | AN6: Max length 1280
P7: Table 3 SU | X7: Table 1
L8: Manual in cell AL1 | P8: Ni | Q8: j | R8: Syst % | S8: Strat % | T8: Rand % | U8: s1/sq(Ni) | V8: s1/Ni | X8: INPUT | Z8: Variogram | AA8: DFT | AB8: RSD % (n=1) | AM8: 2) Enter/correct parameters in Table 2
Q9: =IF(P9="","",AC$6/(2*P9)) ->  | R9: =IF(AF9<>"",AF9/$V$5,"") ->  | S9: =IF(AG9<>"",AG9/$V$5,"") ->  | T9: =IF(AH9<>"",AH9/$V$5,"") ->  | U9: =IF(AE9<>"",R$9/SQRT(AE9),"") ->  | V9: =IF(AE9<>"",R$9/AE9,"") ->  | X9: x | Y9: y | Z9: V(j) | AB9: Syst | AC9: Random | AN9: MC: Monte Carlo runs for stratified random and random sampling
R10: =IF(AF10<>"",AF10/$V$5,"") ->  | X10: 1 | Y10: 0.02830405036 | AN10: Large no of runs increases accuracy - and runtime…
X11: 2 | Y11: 0.02741282545 | AN11: 4000 seems to be a reasonable value
X12: 3 | Y12: 0.0262502712 | AN12: Max: Max number of increments
X13: 4 | Y13: 0.02481218744 | AN13: N(Nugget): No of pointes for linear extrapolation to V(0)
X14: 5 | Y14: 0.02320858456 | AN14: If the number looks wrong, change N(Nugget) and recalculate
X15: 6 | Y15: 0.02163155296
X16: 7 | Y16: 0.02030123858 | AM16: 3) Press the button Update SU
X17: 8 | Y17: 0.01940439697 | AN17: See the progress in the lower left corner
X18: 9 | Y18: 0.01904197971 | AN18: If it takes too ling time press ESC and then End
X19: 10 | Y19: 0.01919980795
X20: 11 | Y20: 0.01975017731 | AM20: 4) Analyse the results in Table 3 & 4 - and the graphs
X21: 12 | Y21: 0.0204839804 | AN21: Results can be shown as RSD % or in % of RSD(aL)
X22: 13 | Y22: 0.02116471226
H23: Nugget V(0) = | J23: =AE4 -> 0 | X23: 14 | Y23: 0.02158991435 | AM23: 5) To make a Discrete Fourier analysis of the data press DFT
X24: 15 | Y24: 0.0216435711 | AN24: The cyclic components of the data can be analysed
P25: Table 4 Variogram integration | X25: 16 | Y25: 0.02132542934 | AN25: DFT-filtering can be used to attenuate or amplify cyclic variations
P26: Ni | Q26: j | R26: Syst % | S26: Strat % | T26: Rand % | U26: s1/sq(Ni) | V26: s1/Ni | X26: 17 | Y26: 0.02074937646
Q27: =IF(P27="","",AC$6/(2*P27)) ->  | R27: =IF(AF27<>"",AF27/$V$5,"") ->  | U27: =IF(AE27<>"",R$27/SQRT(AE27),"") ->  | V27: =IF(AE27<>"",R$27/AE27,"") ->  | X27: 18 | Y27: 0.02011131486 | AM27: 6) Save the workbook under a new name: Save As…
X28: 19 | Y28: 0.01963513648
X29: 20 | Y29: 0.01951127587 | AM29: 7) To continue: Change input and try again - or create a new sheet
X30: 21 | Y30: 0.01984429561
X31: 22 | Y31: 0.02062355985 | AM31: 8) To create a new sheet press the New Sheet button
X32: 23 | Y32: 0.02172484521 | AN32: The new sheet will contain a copy of data in Table 1 to 3
X33: 24 | Y33: 0.0229424503
X34: 25 | Y34: 0.02404321816 | AM34: 9) Troubleshooting
X35: 26 | Y35: 0.02482796425 | AN35: If you get a runtime error in the macros:
X36: 27 | Y36: 0.025183884 | AN36: Press Debug in the pop up window
X37: 28 | Y37: 0.02511386824 | AN37: Look at the code and try to understand the problem
X38: 29 | Y38: 0.02473488037 | AN38: Press the reset button (blue square in the tools) and try to fix the
X39: 30 | Y39: 0.02424583076 | AN39: error or go to the spreadsheet and fix the error
X40: 31 | Y40: 0.02387355638
X41: 32 | Y41: 0.02381136477
X42: 33 | Y42: 0.02416662851
X43: 34 | Y43: 0.02493145375
X44: 35 | Y44: 0.02598429111 | AE44: Lot variance | AH44: Nugget effect
X45: 36 | Y45: 0.0271220482 | AE45: x | AF45: Var | AH45: x | AI45: V(j)
X46: 37 | Y46: 0.02811410707 | AE46: 0 | AF46: =(AH3*AI3/100)^2 -> 0 | AH46: 0 | AI46: =AE4 -> 0
X47: 38 | Y47: 0.02876376016 | AE47: =AG3/2 -> 0 | AF47: =AF46 -> 0 | AH47: =AF4 -> 0 | AI47: =AG4*AH47+AI46 -> 0
X48: 39 | Y48: 0.0289606099
X49: 40 | Y49: 0.02870988615 | AE49: Variogram points
X50: 41 | Y50: 0.02813082627 | AE50: Ni | AF50: j | AG50: V(j) | AH50: DFT
X51: 42 | Y51: 0.02742454766 | AE51: =AE9 -> 0 | AF51: =IF(AE51=0,0,$AC$6/(2*AE51)) -> 0 | AG51: =IF(AF51=0,NA(),VLOOKUP(AF51,X$10:Z$649,3)) ->  | AH51: =NA() -> 
X52: 43 | Y52: 0.02682002728 | AE52: =AE10 -> 0 | AF52: =IF(AE52=0,0,$AC$6/(2*AE52)) -> 0 | AG52: =IF(AF52=0,NA(),VLOOKUP(AF52,X$10:Z$649,3)) ->  | AH52: =IF(AE52=0,NA(),VLOOKUP((AE52),X$10:AA$649,4)) -> 
X53: 44 | Y53: 0.02651264568 | AE53: 0 | AF53: 0
X54: 45 | Y54: 0.02661178041 | AE54: 0 | AF54: 0
X55: 46 | Y55: 0.02711147765 | AE55: 0 | AF55: 0
X56: 47 | Y56: 0.02789205901 | AE56: 0 | AF56: 0
X57: 48 | Y57: 0.0287522391 | AE57: 0 | AF57: 0
X58: 49 | Y58: 0.02946313797 | AE58: 0 | AF58: 0
X59: 50 | Y59: 0.02982972006 | AE59: 0 | AF59: 0
X60: 51 | Y60: 0.0297431908 | AE60: 0 | AF60: 0
X61: 52 | Y61: 0.02921031905 | AE61: 0 | AF61: 0
X62: 53 | Y62: 0.02835181217 | AE62: 0 | AF62: 0
X63: 54 | Y63: 0.02737019357 | AE63: 0 | AF63: 0
X64: 55 | Y64: 0.02649577419 | AE64: 0 | AF64: 0
X65: 56 | Y65: 0.02592520758 | AE65: 0 | AF65: 0
X66: 57 | Y66: 0.02576907332 | AE66: 0 | AF66: 0
X67: 58 | Y67: 0.02602255355
X68: 59 | Y68: 0.02656704092
X69: 60 | Y69: 0.027202252
X70: 61 | Y70: 0.02770024287
X71: 62 | Y71: 0.02786684496
X72: 63 | Y72: 0.02759406771
X73: 64 | Y73: 0.02688941495
X74: 65 | Y74: 0.02587426207
X75: 66 | Y75: 0.02475173247
X76: 67 | Y76: 0.02375267409
X77: 68 | Y77: 0.02307420448
X78: 69 | Y78: 0.02282730722
X79: 70 | Y79: 0.02300749646
X80: 71 | Y80: 0.02349643182
X81: 72 | Y81: 0.02409403091
X82: 73 | Y82: 0.02457248077
X83: 74 | Y83: 0.02473768086
X84: 75 | Y84: 0.02448163961
X85: 76 | Y85: 0.02381179185
X86: 77 | Y86: 0.02284937998
X87: 78 | Y87: 0.02179732637
X88: 79 | Y88: 0.02088620899
X89: 80 | Y89: 0.02031281238
X90: 81 | Y90: 0.02018771512
X91: 82 | Y91: 0.02050596536
X92: 83 | Y92: 0.02114868572
X93: 84 | Y93: 0.02191519081
X94: 85 | Y94: 0.02257699767
X95: 86 | Y95: 0.02293927077
X96: 87 | Y96: 0.02289321351
X97: 88 | Y97: 0.02244539176
X98: 89 | Y98: 0.02171610988
X99: 90 | Y99: 0.02090728627
X100: 91 | Y100: 0.02024842789
X101: 92 | Y101: 0.01993518128
X102: 93 | Y102: 0.02007692202
X103: 94 | Y103: 0.02066742426
X104: 95 | Y104: 0.02158647262
X105: 96 | Y105: 0.02263197671
X106: 97
X107: 98
X108: 99
X109: 100
X110: 101
X111: 102
X112: 103
X113: 104
X114: 105
X115: 106
X116: 107
X117: 108
X118: 109
X119: 110
X120: 111
X121: 112
X122: 113
X123: 114
X124: 115
X125: 116
X126: 117
X127: 118
X128: 119
X129: 120
X130: 121
X131: 122
X132: 123
X133: 124
X134: 125
X135: 126
X136: 127
X137: 128
